[Event "Championnat d'Europe de Blitz"]
[Date "2024.12.09"]
[White "Djurovic, Peko"]
[Black "Perunovic, Miodrag"]
[WhiteElo "2253"]
[BlackElo "2357"]
[Round "11.49"]
[Result "0-1"]
[TimeControl "180+2"]

1. e4 {[%emt 00:00:01] [%clk 00:03:01]} c5 {[%emt 00:00:03] [%clk 00:03:01]} 2.
Nf3 {[%emt 00:00:02] [%clk 00:03:01]} d6 {[%emt 00:00:01] [%clk 00:03:02]} 3. d4
{[%emt 00:00:02] [%clk 00:03:01]} cxd4 {[%emt 00:00:01] [%clk 00:03:02]} 4. Nxd4
{[%emt 00:00:03] [%clk 00:03:01]} Nf6 {[%emt 00:00:01] [%clk 00:03:03]} 5. Nc3
{[%emt 00:00:02] [%clk 00:03:01]} g6 {[%emt 00:00:02] [%clk 00:03:03]} 6. Bc4
{[%emt 00:00:13] [%clk 00:02:50]} Bg7 {[%emt 00:00:02] [%clk 00:03:03]} 7. f3
{[%emt 00:00:02] [%clk 00:02:50]} O-O {[%emt 00:00:03] [%clk 00:03:02]} 8. Be3
{[%emt 00:00:02] [%clk 00:02:50]} Nc6 {[%emt 00:00:01] [%clk 00:03:03]} 9. Qd2
{[%emt 00:00:03] [%clk 00:02:49]} Bd7 {[%emt 00:00:02] [%clk 00:03:03]} 10.
O-O-O {[%emt 00:00:03] [%clk 00:02:48]} Rc8 {[%emt 00:00:01] [%clk 00:03:04]}
11. Bb3 {[%emt 00:00:06] [%clk 00:02:44]} Ne5 {[%emt 00:00:01] [%clk 00:03:05]}
12. h4 {[%emt 00:00:10] [%clk 00:02:36]} h5 {[%emt 00:00:02] [%clk 00:03:05]}
13. Bh6 {[%emt 00:00:09] [%clk 00:02:29]} Bxh6 {[%emt 00:00:03] [%clk 00:03:03]}
14. Qxh6 {[%emt 00:00:03] [%clk 00:02:29]} Rxc3 {[%emt 00:00:02] [%clk
00:03:03]} 15. bxc3 {[%emt 00:00:05] [%clk 00:02:26]} Qa5 {[%emt 00:00:01] [%clk
00:03:04]} 16. g4 {[%emt 00:00:26] [%clk 00:02:02]} Qxc3 {[%emt 00:00:03] [%clk
00:03:02]} 17. Kb1 {[%emt 00:00:19] [%clk 00:01:46]} a5 {[%emt 00:00:21] [%clk
00:02:43]} 18. gxh5 {[%emt 00:00:30] [%clk 00:01:18]} a4 {[%clk 00:02:44]} 19.
hxg6 {[%emt 00:01:00] [%clk 00:00:20]} axb3 {[%emt 00:00:01] [%clk 00:02:44]}
20. gxf7+ {[%emt 00:00:04] [%clk 00:00:18]} Kxf7 {[%emt 00:00:05] [%clk
00:02:41]} 21. cxb3 {[%emt 00:00:03] [%clk 00:00:17]} Nxf3 {[%emt 00:00:27]
[%clk 00:02:17]} 22. Ne2 {[%emt 00:00:15] [%clk 00:00:04]} Qe5 {[%emt 00:00:21]
[%clk 00:01:58]} 23. Qf4 {[%emt 00:00:02] [%clk 00:00:04]} Qxf4 {[%emt 00:00:25]
[%clk 00:01:35]} 24. Nxf4 {[%emt 00:00:01] [%clk 00:00:04]} Nxe4 {[%emt
00:00:02] [%clk 00:01:36]} 25. Nd3 {[%emt 00:00:03] [%clk 00:00:03]} Nc3+ {[%emt
00:00:02] [%clk 00:01:36]} 0-1

[Site "Europe Echecs"]

[Event "Championnat d'Europe de Blitz"]
[Date "2024.12.09"]
[White "Mueller, Magnus"]
[Black "Pacher, Milan"]
[WhiteElo "2166"]
[BlackElo "2310"]
[Round "11.50"]
[Result "1/2-1/2"]
[TimeControl "180+2"]

1. e4 {[%clk 00:03:02]} e5 {[%emt 00:00:01] [%clk 00:03:03]} 2. Nf3 {[%emt
00:00:01] [%clk 00:03:03]} Nc6 {[%emt 00:00:01] [%clk 00:03:04]} 3. Nc3 {[%emt
00:00:01] [%clk 00:03:04]} Nf6 {[%emt 00:00:01] [%clk 00:03:05]} 4. Nd5 {[%clk
00:03:06]} Be7 {[%emt 00:00:06] [%clk 00:03:01]} 5. Bd3 {[%emt 00:00:02] [%clk
00:03:06]} d6 {[%emt 00:00:03] [%clk 00:03:00]} 6. c3 {[%emt 00:00:06] [%clk
00:03:02]} O-O {[%emt 00:00:07] [%clk 00:02:55]} 7. O-O {[%emt 00:00:02] [%clk
00:03:02]} Bg4 {[%emt 00:00:11] [%clk 00:02:46]} 8. Bc2 {[%emt 00:00:35] [%clk
00:02:29]} Nxd5 {[%emt 00:00:16] [%clk 00:02:32]} 9. exd5 {[%clk 00:02:30]} Nb8
{[%emt 00:00:01] [%clk 00:02:33]} 10. h3 {[%emt 00:00:15] [%clk 00:02:17]} Bh5
{[%emt 00:00:02] [%clk 00:02:33]} 11. d4 {[%emt 00:00:08] [%clk 00:02:12]} Nd7
{[%clk 00:02:33]} 12. Re1 {[%emt 00:00:10] [%clk 00:02:05]} Bf6 {[%emt 00:00:11]
[%clk 00:02:24]} 13. g4 {[%emt 00:00:49] [%clk 00:01:18]} Bg6 {[%emt 00:00:01]
[%clk 00:02:24]} 14. Bxg6 {[%clk 00:01:19]} fxg6 {[%emt 00:00:11] [%clk
00:02:15]} 15. g5 {[%emt 00:00:10] [%clk 00:01:12]} Be7 {[%emt 00:00:01] [%clk
00:02:15]} 16. dxe5 {[%emt 00:00:25] [%clk 00:00:49]} dxe5 {[%emt 00:00:02]
[%clk 00:02:15]} 17. Nxe5 {[%emt 00:00:05] [%clk 00:00:46]} Bd6 {[%emt 00:00:11]
[%clk 00:02:06]} 18. f4 {[%emt 00:00:09] [%clk 00:00:39]} Rf5 {[%emt 00:00:17]
[%clk 00:01:51]} 19. Nd3 {[%emt 00:00:25] [%clk 00:00:17]} Nc5 {[%emt 00:00:12]
[%clk 00:01:40]} 20. Ne5 {[%emt 00:00:06] [%clk 00:00:13]} Nd7 {[%emt 00:00:19]
[%clk 00:01:23]} 21. Nd3 {[%clk 00:00:14]} Rxd5 {[%emt 00:00:19] [%clk
00:01:05]} 22. Qf3 {[%clk 00:00:16]} c6 {[%emt 00:00:09] [%clk 00:00:59]} 23. c4
{[%emt 00:00:02] [%clk 00:00:16]} Rf5 {[%emt 00:00:04] [%clk 00:00:58]} 24. Be3
{[%clk 00:00:18]} Qc7 {[%emt 00:00:05] [%clk 00:00:54]} 25. Rad1 {[%emt
00:00:06] [%clk 00:00:14]} Raf8 {[%emt 00:00:01] [%clk 00:00:55]} 26. Qe4 {[%emt
00:00:02] [%clk 00:00:14]} Nc5 {[%emt 00:00:07] [%clk 00:00:50]} 27. Nxc5 {[%emt
00:00:04] [%clk 00:00:12]} Bxc5 {[%emt 00:00:01] [%clk 00:00:51]} 28. Qe6+
{[%clk 00:00:13]} Kh8 {[%clk 00:00:52]} 29. Bxc5 {[%emt 00:00:06] [%clk
00:00:10]} Rxc5 {[%emt 00:00:01] [%clk 00:00:52]} 30. Re5 {[%emt 00:00:03] [%clk
00:00:09]} Qb6 {[%emt 00:00:07] [%clk 00:00:48]} 31. Kh1 {[%emt 00:00:07] [%clk
00:00:04]} Rxe5 {[%emt 00:00:08] [%clk 00:00:41]} 32. Qxe5 {[%emt 00:00:01]
[%clk 00:00:05]} Qf2 {[%emt 00:00:04] [%clk 00:00:39]} 33. Rd7 {[%emt 00:00:02]
[%clk 00:00:06]} Qf3+ {[%emt 00:00:05] [%clk 00:00:35]} 34. Kh2 {[%emt 00:00:01]
[%clk 00:00:07]} Qf2+ {[%emt 00:00:06] [%clk 00:00:32]} 35. Kh1 {[%clk
00:00:08]} Rg8 {[%emt 00:00:11] [%clk 00:00:23]} 36. Rxb7 {[%emt 00:00:01] [%clk
00:00:09]} Qf1+ {[%emt 00:00:06] [%clk 00:00:20]} 37. Kh2 {[%clk 00:00:10]} Qxc4
{[%emt 00:00:02] [%clk 00:00:20]} 38. b3 {[%emt 00:00:05] [%clk 00:00:07]} Qc2+
{[%emt 00:00:03] [%clk 00:00:19]} 39. Kh1 {[%emt 00:00:01] [%clk 00:00:08]} Qxa2
{[%emt 00:00:03] [%clk 00:00:18]} 40. Qe7 {[%emt 00:00:05] [%clk 00:00:05]} Qb1+
{[%emt 00:00:05] [%clk 00:00:16]} 41. Kh2 {[%emt 00:00:01] [%clk 00:00:06]} Qc2+
{[%emt 00:00:01] [%clk 00:00:16]} 42. Kg3 {[%emt 00:00:01] [%clk 00:00:07]} Qc3+
{[%emt 00:00:04] [%clk 00:00:14]} 43. Kg2 {[%emt 00:00:01] [%clk 00:00:08]} Qd2+
{[%emt 00:00:02] [%clk 00:00:14]} 44. Kg3 {[%clk 00:00:09]} Qd3+ {[%emt
00:00:01] [%clk 00:00:14]} 45. Kg2 {[%emt 00:00:01] [%clk 00:00:11]} a5 {[%emt
00:00:02] [%clk 00:00:14]} 46. Qf7 {[%emt 00:00:08] [%clk 00:00:05]} c5 {[%emt
00:00:03] [%clk 00:00:12]} 47. Rc7 {[%emt 00:00:02] [%clk 00:00:05]} Qe2+ {[%emt
00:00:06] [%clk 00:00:08]} 48. Kg3 {[%clk 00:00:07]} Qe3+ {[%emt 00:00:03] [%clk
00:00:08]} 49. Kg2 {[%clk 00:00:08]} Qd2+ {[%emt 00:00:03] [%clk 00:00:07]} 50.
Kg3 {[%emt 00:00:01] [%clk 00:00:10]} Qc3+ {[%clk 00:00:08]} 51. Kg2 {[%clk
00:00:11]} Qb2+ {[%emt 00:00:02] [%clk 00:00:09]} 52. Kg3 {[%clk 00:00:12]} Rd8
{[%emt 00:00:03] [%clk 00:00:08]} 53. Rd7 {[%emt 00:00:01] [%clk 00:00:13]} Rg8
{[%emt 00:00:02] [%clk 00:00:08]} 54. Rc7 {[%emt 00:00:02] [%clk 00:00:14]} Qc3+
{[%emt 00:00:02] [%clk 00:00:08]} 55. Kg2 {[%clk 00:00:15]} Qc2+ {[%emt
00:00:02] [%clk 00:00:08]} 56. Kg3 {[%clk 00:00:16]} a4 {[%emt 00:00:02] [%clk
00:00:08]} 57. bxa4 {[%emt 00:00:02] [%clk 00:00:16]} Qxa4 {[%emt 00:00:01]
[%clk 00:00:08]} 58. h4 {[%emt 00:00:05] [%clk 00:00:13]} Qa3+ {[%emt 00:00:03]
[%clk 00:00:07]} 59. Kg4 {[%emt 00:00:03] [%clk 00:00:12]} Qb2 {[%emt 00:00:03]
[%clk 00:00:06]} 60. Kg3 {[%emt 00:00:03] [%clk 00:00:12]} Qc3+ {[%emt 00:00:02]
[%clk 00:00:06]} 61. Kg4 {[%clk 00:00:13]} Qd2 {[%emt 00:00:02] [%clk 00:00:06]}
62. Kg3 {[%emt 00:00:03] [%clk 00:00:12]} Qe3+ {[%emt 00:00:01] [%clk 00:00:07]}
63. Kg2 {[%emt 00:00:02] [%clk 00:00:12]} Qe2+ {[%emt 00:00:02] [%clk 00:00:06]}
64. Kg3 {[%emt 00:00:01] [%clk 00:00:14]} Qe3+ {[%emt 00:00:05] [%clk 00:00:03]}
65. Kg2 {[%clk 00:00:15]} Qe4+ {[%clk 00:00:05]} 66. Kg3 {[%emt 00:00:01] [%clk
00:00:16]} Qd3+ {[%clk 00:00:06]} 67. Kg2 {[%clk 00:00:17]} Qe4+ {[%emt
00:00:02] [%clk 00:00:07]} 68. Kg3 {[%clk 00:00:18]} Qe1+ {[%emt 00:00:01] [%clk
00:00:07]} 69. Kf3 {[%emt 00:00:02] [%clk 00:00:19]} Qxh4 {[%emt 00:00:09]} 70.
Re7 {[%clk 00:00:15]} Qh3+ {[%emt 00:00:02] [%clk 00:00:07]} 71. Kf2 {[%clk
00:00:16]} Qf5 {[%emt 00:00:04] [%clk 00:00:05]} 72. Qxf5 {[%emt 00:00:02] [%clk
00:00:16]} gxf5 {[%emt 00:00:01] [%clk 00:00:06]} 73. Re5 {[%emt 00:00:01] [%clk
00:00:17]} Rc8 {[%emt 00:00:02] [%clk 00:00:07]} 74. Rxf5 {[%emt 00:00:06] [%clk
00:00:13]} Kg8 {[%emt 00:00:03] [%clk 00:00:05]} 75. Ke3 {[%clk 00:00:14]} g6
{[%emt 00:00:01] [%clk 00:00:06]} 76. Rf6 {[%emt 00:00:02] [%clk 00:00:13]} c4
{[%emt 00:00:02] [%clk 00:00:07]} 77. Kd2 {[%clk 00:00:15]} Rf8 {[%emt 00:00:01]
[%clk 00:00:08]} 78. Rxf8+ {[%emt 00:00:05] [%clk 00:00:11]} Kxf8 {[%clk
00:00:09]} 79. Kc3 {[%emt 00:00:02] [%clk 00:00:13]} Ke7 {[%clk 00:00:10]} 80.
Kxc4 {[%clk 00:00:14]} Ke6 {[%emt 00:00:01] [%clk 00:00:12]} 81. Kd4 {[%clk
00:00:15]} Kf5 {[%clk 00:00:13]} 82. Ke3 {[%clk 00:00:17]} Kg4 {[%clk 00:00:14]}
83. Ke4 {[%clk 00:00:18]} Kg3 {[%emt 00:00:01] [%clk 00:00:13]} 84. f5 {[%emt
00:00:02] [%clk 00:00:19]} gxf5+ {[%emt 00:00:01] [%clk 00:00:14]} 85. Kxf5
{[%clk 00:00:20]} Kh4 {[%emt 00:00:01] [%clk 00:00:15]} 86. g6 {[%emt 00:00:01]
[%clk 00:00:22]} hxg6+ {[%clk 00:00:16]} 87. Kxg6 {[%clk 00:00:23]} 1/2-1/2

[Site "Europe Echecs"]

[Event "Championnat d'Europe de Blitz"]
[Date "2024.12.09"]
[White "Diermair, Andreas"]
[Black "Radovanovic, Dusan"]
[WhiteElo "2433"]
[BlackElo "2274"]
[Round "11.51"]
[Result "1/2-1/2"]
[TimeControl "180+2"]

1. c4 {[%clk 00:03:03]} e5 {[%emt 00:00:03] [%clk 00:03:02]} 2. Nc3 {[%emt
00:00:02] [%clk 00:03:02]} Nc6 {[%emt 00:00:01] [%clk 00:03:03]} 3. Nf3 {[%emt
00:00:03] [%clk 00:03:01]} Nf6 {[%emt 00:00:01] [%clk 00:03:04]} 4. e3 {[%emt
00:00:01] [%clk 00:03:02]} Bb4 {[%emt 00:00:02] [%clk 00:03:05]} 5. Qc2 {[%emt
00:00:04] [%clk 00:02:59]} a5 {[%emt 00:00:01] [%clk 00:03:06]} 6. Be2 {[%emt
00:00:19] [%clk 00:02:42]} O-O {[%emt 00:00:04] [%clk 00:03:04]} 7. Nd5 {[%emt
00:00:02] [%clk 00:02:41]} h6 {[%emt 00:00:43] [%clk 00:02:23]} 8. b3 {[%emt
00:00:04] [%clk 00:02:40]} Bc5 {[%emt 00:00:02] [%clk 00:02:23]} 9. Bb2 {[%emt
00:00:09] [%clk 00:02:33]} d6 {[%emt 00:00:01] [%clk 00:02:24]} 10. a3 {[%emt
00:00:05] [%clk 00:02:30]} Be6 {[%emt 00:00:12] [%clk 00:02:14]} 11. Nc3 {[%emt
00:00:05] [%clk 00:02:27]} Bg4 {[%emt 00:00:29] [%clk 00:01:47]} 12. O-O {[%emt
00:00:09] [%clk 00:02:19]} Re8 {[%emt 00:00:04] [%clk 00:01:46]} 13. d3 {[%emt
00:00:01] [%clk 00:02:20]} Bf5 {[%emt 00:00:07] [%clk 00:01:41]} 14. Qd2 {[%emt
00:00:10] [%clk 00:02:12]} Qd7 {[%emt 00:00:27] [%clk 00:01:17]} 15. Rac1 {[%emt
00:00:05] [%clk 00:02:08]} Ne7 {[%emt 00:00:21] [%clk 00:00:58]} 16. d4 {[%emt
00:00:15] [%clk 00:01:55]} exd4 {[%emt 00:00:02] [%clk 00:00:58]} 17. Nxd4
{[%emt 00:00:04] [%clk 00:01:53]} Bh7 {[%emt 00:00:05] [%clk 00:00:55]} 18. Bf3
{[%emt 00:00:02] [%clk 00:01:52]} c6 {[%emt 00:00:04] [%clk 00:00:54]} 19. Rfd1
{[%emt 00:00:01] [%clk 00:01:52]} Rad8 {[%emt 00:00:04] [%clk 00:00:53]} 20. Na4
{[%emt 00:00:06] [%clk 00:01:48]} Ba7 {[%emt 00:00:01] [%clk 00:00:54]} 21. Qxa5
{[%emt 00:00:03] [%clk 00:01:46]} Bb8 {[%emt 00:00:27] [%clk 00:00:30]} 22. Qd2
{[%emt 00:00:19] [%clk 00:01:29]} Qc7 {[%emt 00:00:09] [%clk 00:00:24]} 23. g3
{[%emt 00:00:03] [%clk 00:01:26]} Ng6 {[%emt 00:00:06] [%clk 00:00:21]} 24. Bg2
{[%emt 00:00:11] [%clk 00:01:17]} h5 {[%clk 00:00:22]} 25. Nc3 {[%emt 00:00:08]
[%clk 00:01:11]} h4 {[%emt 00:00:01] [%clk 00:00:23]} 26. Nce2 {[%emt 00:00:01]
[%clk 00:01:11]} hxg3 {[%emt 00:00:02] [%clk 00:00:24]} 27. hxg3 {[%emt
00:00:01] [%clk 00:01:12]} Ne5 {[%emt 00:00:02] [%clk 00:00:24]} 28. Nf3 {[%emt
00:00:07] [%clk 00:01:06]} Nfg4 {[%emt 00:00:08] [%clk 00:00:20]} 29. Nf4 {[%emt
00:00:05] [%clk 00:01:02]} Qc8 {[%emt 00:00:05] [%clk 00:00:17]} 30. Ng5 {[%emt
00:00:12] [%clk 00:00:52]} Bf5 {[%emt 00:00:07] [%clk 00:00:13]} 31. e4 {[%emt
00:00:02] [%clk 00:00:51]} Bd7 {[%emt 00:00:01] [%clk 00:00:14]} 32. Qe2 {[%emt
00:00:06] [%clk 00:00:47]} f6 {[%emt 00:00:03] [%clk 00:00:13]} 33. Nf3 {[%emt
00:00:04] [%clk 00:00:45]} Nxf3+ {[%emt 00:00:03] [%clk 00:00:12]} 34. Bxf3
{[%emt 00:00:06] [%clk 00:00:41]} Ne5 {[%clk 00:00:13]} 35. Bh5 {[%emt 00:00:03]
[%clk 00:00:40]} Rf8 {[%emt 00:00:04] [%clk 00:00:11]} 36. Kg2 {[%emt 00:00:05]
[%clk 00:00:36]} Ba7 {[%emt 00:00:01] [%clk 00:00:13]} 37. Rh1 {[%emt 00:00:04]
[%clk 00:00:34]} Bg4 {[%emt 00:00:04] [%clk 00:00:12]} 38. Bxg4 {[%emt 00:00:03]
[%clk 00:00:32]} Nxg4 {[%clk 00:00:14]} 39. Ng6 {[%emt 00:00:11] [%clk
00:00:23]} Rfe8 {[%emt 00:00:04] [%clk 00:00:12]} 40. c5 {[%emt 00:00:08] [%clk
00:00:16]} Bxc5 {[%emt 00:00:02] [%clk 00:00:13]} 41. Rh4 {[%emt 00:00:05] [%clk
00:00:13]} Nxf2 {[%clk 00:00:13]} 42. Rxc5 {[%emt 00:00:02] [%clk 00:00:15]}
dxc5 {[%emt 00:00:02] [%clk 00:00:13]} 43. Kxf2 {[%emt 00:00:04] [%clk
00:00:13]} Qe6 {[%emt 00:00:02] [%clk 00:00:12]} 44. Rh8+ {[%emt 00:00:08] [%clk
00:00:08]} Kf7 {[%emt 00:00:02]} 45. Nf4 {[%clk 00:00:09]} Qxb3 {[%emt
00:00:02]} 46. Qh5+ {[%clk 00:00:08]} Ke7 {[%emt 00:00:01] [%clk 00:00:16]} 47.
Qxc5+ {[%emt 00:00:02] [%clk 00:00:08]} Kd7 {[%clk 00:00:18]} 48. Qd4+ {[%emt
00:00:02] [%clk 00:00:07]} Kc8 {[%emt 00:00:01] [%clk 00:00:18]} 49. Rxe8 {[%emt
00:00:01] [%clk 00:00:08]} Rxe8 {[%emt 00:00:02]} 50. Qd2 {[%emt 00:00:05] [%clk
00:00:04]} Qb6+ {[%emt 00:00:02] [%clk 00:00:20]} 51. Bd4 {[%emt 00:00:01] [%clk
00:00:05]} Qa6 {[%clk 00:00:21]} 52. Kf3 {[%emt 00:00:01] [%clk 00:00:06]} Qb5
{[%emt 00:00:01] [%clk 00:00:23]} 53. Be3 {[%emt 00:00:01] [%clk 00:00:06]} f5
{[%emt 00:00:02] [%clk 00:00:23]} 54. exf5 {[%emt 00:00:01] [%clk 00:00:06]}
Qxf5 {[%clk 00:00:25]} 55. Qd4 {[%emt 00:00:02] [%clk 00:00:06]} g5 {[%emt
00:00:02] [%clk 00:00:24]} 56. Qa7 {[%emt 00:00:04] [%clk 00:00:05]} Qe4+ {[%emt
00:00:03] [%clk 00:00:23]} 57. Kg4 {[%clk 00:00:06]} gxf4 {[%emt 00:00:01] [%clk
00:00:23]} 58. Bxf4 {[%emt 00:00:02] [%clk 00:00:07]} Qg6+ {[%emt 00:00:01]
[%clk 00:00:24]} 59. Kf3 {[%clk 00:00:08]} Qd3+ {[%clk 00:00:25]} 60. Kg4 {[%emt
00:00:01] [%clk 00:00:08]} Qa6 {[%emt 00:00:01] [%clk 00:00:27]} 61. Qd4 {[%emt
00:00:02] [%clk 00:00:08]} Qb5 {[%emt 00:00:04] [%clk 00:00:25]} 62. Qd6 {[%emt
00:00:02] [%clk 00:00:09]} Rg8+ {[%emt 00:00:03] [%clk 00:00:23]} 63. Kh4 {[%emt
00:00:03] [%clk 00:00:07]} Rh8+ {[%emt 00:00:04] [%clk 00:00:21]} 64. Bh6 {[%emt
00:00:03] [%clk 00:00:07]} Qd5 {[%emt 00:00:07] [%clk 00:00:17]} 65. Qf4 {[%emt
00:00:03] [%clk 00:00:04]} Qe6 {[%emt 00:00:04] [%clk 00:00:16]} 66. Kh5 {[%emt
00:00:02] [%clk 00:00:04]} b5 {[%emt 00:00:02] [%clk 00:00:16]} 67. g4 {[%clk
00:00:05]} Qd5+ {[%emt 00:00:02] [%clk 00:00:17]} 68. g5 {[%emt 00:00:02] [%clk
00:00:06]} Qh1+ {[%clk 00:00:17]} 69. Kg6 {[%emt 00:00:02] [%clk 00:00:06]} Qd5
{[%emt 00:00:05]} 70. Kh5 {[%clk 00:00:03]} Kb7 {[%emt 00:00:04] [%clk
00:00:17]} 71. Qf6 {[%emt 00:00:01] [%clk 00:00:04]} Rg8 {[%emt 00:00:02] [%clk
00:00:17]} 72. Qe7+ {[%emt 00:00:01] [%clk 00:00:05]} Ka6 {[%emt 00:00:02] [%clk
00:00:17]} 73. Qf6 {[%emt 00:00:02] [%clk 00:00:05]} Re8 {[%emt 00:00:02] [%clk
00:00:16]} 74. Qf4 {[%emt 00:00:03] [%clk 00:00:05]} Re4 {[%emt 00:00:02] [%clk
00:00:16]} 75. Qf8 {[%emt 00:00:03] [%clk 00:00:04]} Qd7 {[%emt 00:00:07] [%clk
00:00:11]} 76. Qa8+ {[%emt 00:00:01] [%clk 00:00:05]} Kb6 {[%clk 00:00:12]} 77.
Qf8 {[%emt 00:00:03] [%clk 00:00:04]} Qe8+ {[%clk 00:00:13]} 78. Qxe8 {[%clk
00:00:05]} Rxe8 {[%emt 00:00:01] [%clk 00:00:15]} 79. g6 {[%clk 00:00:06]} c5
{[%emt 00:00:01] [%clk 00:00:15]} 80. g7 {[%emt 00:00:01] [%clk 00:00:07]} Kc6
{[%emt 00:00:04] [%clk 00:00:14]} 81. Kg6 {[%clk 00:00:09]} Kd5 {[%emt 00:00:02]
[%clk 00:00:14]} 82. Kf7 {[%clk 00:00:10]} Rc8 {[%emt 00:00:02] [%clk 00:00:14]}
83. Bg5 {[%clk 00:00:10]} b4 {[%emt 00:00:06] [%clk 00:00:11]} 84. axb4 {[%clk
00:00:12]} cxb4 {[%emt 00:00:01] [%clk 00:00:13]} 85. Be7 {[%emt 00:00:01] [%clk
00:00:12]} b3 {[%emt 00:00:03] [%clk 00:00:12]} 86. Bf6 {[%clk 00:00:13]} Kc4
{[%emt 00:00:09] [%clk 00:00:05]} 87. g8=Q {[%emt 00:00:02]} Rxg8 {[%clk
00:00:06]} 88. Kxg8 {[%emt 00:00:01] [%clk 00:00:14]} 1/2-1/2

[Site "Europe Echecs"]

[Event "Championnat d'Europe de Blitz"]
[Date "2024.12.09"]
[White "Dobrikov, Marco"]
[Black "Tudor, Henry Edward"]
[WhiteElo "2407"]
[BlackElo "2375"]
[Round "11.52"]
[Result "0-1"]
[TimeControl "180+2"]

1. Nc3 {[%emt 00:19:05] [%clk 00:03:03]} d5 {[%clk 00:03:03]} 2. d4 {[%clk
00:03:04]} Nf6 {[%emt 00:00:02] [%clk 00:03:04]} 3. Bf4 {[%emt 00:00:01] [%clk
00:03:05]} a6 {[%emt 00:00:04] [%clk 00:03:02]} 4. e3 {[%emt 00:00:05] [%clk
00:03:01]} b5 {[%emt 00:00:01] [%clk 00:03:02]} 5. f3 {[%emt 00:00:15] [%clk
00:02:48]} e6 {[%emt 00:00:10] [%clk 00:02:54]} 6. g4 {[%emt 00:00:04] [%clk
00:02:47]} c5 {[%emt 00:00:01] [%clk 00:02:55]} 7. Qd2 {[%emt 00:00:12] [%clk
00:02:36]} Nc6 {[%emt 00:00:04] [%clk 00:02:54]} 8. h4 {[%emt 00:00:11] [%clk
00:02:26]} Qb6 {[%emt 00:00:35] [%clk 00:02:21]} 9. Nge2 {[%emt 00:00:15] [%clk
00:02:12]} h6 {[%emt 00:00:21] [%clk 00:02:03]} 10. Bg2 {[%emt 00:00:11] [%clk
00:02:03]} a5 {[%emt 00:00:03] [%clk 00:02:02]} 11. a4 {[%emt 00:00:05] [%clk
00:02:00]} bxa4 {[%emt 00:00:37] [%clk 00:01:27]} 12. Nxa4 {[%emt 00:00:04]
[%clk 00:01:58]} Qa7 {[%emt 00:00:02]} 13. dxc5 {[%emt 00:00:38] [%clk
00:01:21]} Bxc5 {[%emt 00:00:07] [%clk 00:01:22]} 14. Nxc5 {[%emt 00:00:03]
[%clk 00:01:21]} Qxc5 {[%clk 00:01:24]} 15. Nc3 {[%emt 00:00:20] [%clk
00:01:02]} e5 {[%emt 00:00:15] [%clk 00:01:11]} 16. Bg3 {[%emt 00:00:01] [%clk
00:01:03]} Be6 {[%emt 00:00:05] [%clk 00:01:08]} 17. g5 {[%emt 00:00:14] [%clk
00:00:52]} hxg5 {[%emt 00:00:01] [%clk 00:01:08]} 18. hxg5 {[%clk 00:00:53]}
Rxh1+ {[%emt 00:00:05] [%clk 00:01:06]} 19. Bxh1 {[%clk 00:00:54]} Nd7 {[%emt
00:00:21] [%clk 00:00:46]} 20. Bg2 {[%emt 00:00:02] [%clk 00:00:55]} Rb8 {[%emt
00:00:07] [%clk 00:00:41]} 21. Na4 {[%emt 00:00:04] [%clk 00:00:53]} Qe7 {[%emt
00:00:03] [%clk 00:00:40]} 22. f4 {[%emt 00:00:10] [%clk 00:00:45]} exf4 {[%emt
00:00:23] [%clk 00:00:19]} 23. Bxf4 {[%emt 00:00:04] [%clk 00:00:43]} Rb4 {[%emt
00:00:02] [%clk 00:00:19]} 24. c3 {[%emt 00:00:04] [%clk 00:00:42]} Rb5 {[%emt
00:00:08] [%clk 00:00:13]} 25. Kf2 {[%emt 00:00:04] [%clk 00:00:39]} Nde5 {[%emt
00:00:07] [%clk 00:00:09]} 26. Kg1 {[%emt 00:00:06] [%clk 00:00:34]} Kf8 {[%emt
00:00:04] [%clk 00:00:07]} 27. Qe2 {[%emt 00:00:03] [%clk 00:00:33]} Rb7 {[%emt
00:00:02] [%clk 00:00:08]} 28. Qh5 {[%emt 00:00:02] [%clk 00:00:32]} Kg8 {[%clk
00:00:09]} 29. Qe2 {[%emt 00:00:10] [%clk 00:00:24]} Ng6 {[%emt 00:00:04] [%clk
00:00:07]} 30. Qd2 {[%emt 00:00:02] [%clk 00:00:24]} Nce5 {[%emt 00:00:04] [%clk
00:00:06]} 31. Rf1 {[%emt 00:00:09] [%clk 00:00:17]} Rd7 {[%emt 00:00:02] [%clk
00:00:06]} 32. Qd4 {[%emt 00:00:02] [%clk 00:00:16]} Nc4 {[%emt 00:00:01] [%clk
00:00:07]} 33. Nc5 {[%emt 00:00:02] [%clk 00:00:16]} Rd8 {[%emt 00:00:03] [%clk
00:00:06]} 34. b3 {[%emt 00:00:04] [%clk 00:00:14]} Nd6 {[%clk 00:00:08]} 35.
Nxe6 {[%emt 00:00:03] [%clk 00:00:13]} fxe6 {[%emt 00:00:01] [%clk 00:00:09]}
36. Qd1 {[%emt 00:00:03] [%clk 00:00:11]} Nf5 {[%emt 00:00:02] [%clk 00:00:09]}
37. Qh5 {[%emt 00:00:02] [%clk 00:00:11]} Nxf4 {[%emt 00:00:01] [%clk 00:00:11]}
38. exf4 {[%emt 00:00:02] [%clk 00:00:11]} Ng3 {[%emt 00:00:02] [%clk 00:00:11]}
39. Qg6 {[%emt 00:00:02] [%clk 00:00:10]} Nxf1 {[%emt 00:00:02] [%clk 00:00:11]}
40. Bxf1 {[%emt 00:00:02] [%clk 00:00:10]} Qf7 {[%emt 00:00:02] [%clk 00:00:11]}
41. Qh5 {[%emt 00:00:05] [%clk 00:00:07]} Qxh5 {[%clk 00:00:12]} 0-1

[Site "Europe Echecs"]